bitfinex-derivatives/quotes_BNBF0:USTF0_20260110
["timestamp","ask_amount","ask_price","bid_price","bid_amount"]
[1768031615088,0.19198199,907.01,906.14,0.68895752]
[1768031615293,0.19198199,907.01,906.07,2.01]
[1768031615493,0.19198199,907.01,906.08,0.68893196]
[1768031615694,0.19198199,907.01,906.09,0.68893196]
[1768031615892,0.19198199,907.01,906.1,0.68893196]
[1768031616092,0.19198199,907.01,906.11,0.68893196]
[1768031616288,0.19198199,907.01,906.12,0.68893196]
[1768031616493,0.19198199,907.01,906.13,0.68893196]
[1768031616695,0.19198199,907.01,906.14,0.68893196]
[1768031616894,0.19198199,907.01,906.07,2.01]
[1768031617093,0.19198199,907.01,906.08,0.68891991]
[1768031617292,0.19198199,907.01,906.09,0.68891991]
[1768031617491,0.19198199,907.01,906.1,0.68891991]
[1768031617695,0.19198199,907.01,906.11,0.68891991]
[1768031617894,0.19198199,907.01,906.12,0.68891991]
[1768031618094,0.19198199,907.01,906.13,0.68891991]
[1768031618292,0.19198199,907.01,906.14,0.68891991]
[1768031618492,0.19198199,907.01,906.07,2.01]
[1768031618694,0.19198199,907.01,906.08,0.68889206]
[1768031618996,0.19198199,907.01,906.09,0.68889206]
[1768031619195,0.19198199,907.01,906.1,0.68889206]
[1768031619493,0.19198199,907.01,906.11,0.68889206]
[1768031619692,2.75489067,907.66,906.12,0.68889206]
[1768031619998,0.19192799,906.79,906.13,0.68889206]
[1768031620294,2.75489067,907.66,906.14,0.68889206]
[1768031620497,0.19192746,907.28,906.07,2.01]
[1768031620698,0.19192746,907.28,906.08,0.6888626]
[1768031620894,0.19192746,907.28,906.09,0.6888626]
[1768031621098,0.19192746,907.28,906.1,0.6888626]
[1768031621395,0.19192746,907.28,906.11,0.6888626]
[1768031621598,0.19192746,907.28,906.12,0.6888626]
[1768031621797,0.19192746,907.28,906.13,0.6888626]
[1768031621995,0.19192746,907.28,906.14,0.6888626]
[1768031622194,0.19192746,907.28,906.07,2.01]
[1768031622395,0.19192746,907.28,906.08,0.68883994]
[1768031622599,0.19192746,907.28,906.09,0.68883994]
[1768031622796,0.19192746,907.28,906.1,0.68883994]
[1768031622999,0.19192746,907.28,906.11,0.68883994]
[1768031623194,0.19192746,907.28,906.12,0.68883994]
[1768031623399,0.19192746,907.28,906.13,0.68883994]
[1768031623597,0.19192746,907.28,906.14,0.68883994]
[1768031623796,0.19192746,907.28,906.15,0.68883994]
[1768031624097,0.19192746,907.28,906.07,2.01]
[1768031624295,0.19192746,907.28,906.08,0.68880377]
[1768031624495,0.19192746,907.28,906.09,0.68880377]
[1768031624702,0.19192746,907.28,906.1,0.68880377]
[1768031624897,0.19192746,907.28,906.11,0.68880377]
[1768031625201,0.19192746,907.28,906.12,0.68880377]
[1768031625401,0.19192746,907.28,906.13,0.68880377]
[1768031625599,0.19192746,907.28,906.14,0.68880377]
[1768031625799,0.19192746,907.28,906.15,0.68880377]
[1768031625998,0.19192746,907.28,906.07,2.01]
[1768031626198,0.19192746,907.28,906.08,0.68878889]
[1768031626402,0.19192746,907.28,906.09,0.68878889]
[1768031626600,0.19192746,907.28,906.1,0.68878889]
[1768031626799,0.19192746,907.28,906.11,0.68878889]
[1768031627002,0.19192746,907.28,906.12,0.68878889]
[1768031627203,0.19192746,907.28,906.13,0.68878889]
[1768031627407,0.19192746,907.28,906.14,0.68878889]
[1768031627606,0.19192746,907.28,906.15,0.68878889]
[1768031627804,0.19192746,907.28,906.07,2.01]
[1768031628109,0.19192746,907.28,906.08,0.68877974]
[1768031628308,0.19192746,907.28,906.09,0.68877974]
[1768031628509,0.19192746,907.28,906.1,0.68877974]
[1768031628707,0.19192746,907.28,906.11,0.68877974]
[1768031629005,0.19192746,907.28,906.12,0.68877974]
[1768031629204,0.19192746,907.28,906.13,0.68877974]
[1768031629405,0.19192746,907.28,906.14,0.68877974]
[1768031629604,0.19192746,907.28,906.15,0.68877974]
[1768031629809,0.19192746,907.28,906.07,2.01]
[1768031630104,0.19192746,907.28,906.08,0.68877463]
[1768031630308,0.19192746,907.28,906.09,0.68877463]
[1768031630507,0.19192746,907.28,906.1,0.68877463]
[1768031630706,0.19192746,907.28,906.11,0.68877463]
[1768031630910,0.19192746,907.28,906.12,0.68877463]
[1768031631208,0.19192746,907.28,906.13,0.68877463]
[1768031631408,0.19192746,907.28,906.14,0.68877463]
[1768031631607,0.19192746,907.28,906.15,0.68877463]
[1768031631812,0.19192746,907.28,905.86,0.82699921]
[1768031632008,0.19192746,907.28,905.87,0.6887725]
[1768031632207,0.19192746,907.28,905.88,0.6887725]
[1768031632408,0.19192746,907.28,905.89,0.6887725]
[1768031632612,0.19192746,907.28,905.9,0.6887725]
[1768031632812,0.19192746,907.28,905.91,0.6887725]
[1768031633110,0.19192746,907.28,905.92,0.6887725]
[1768031633311,0.19192746,907.28,905.93,0.6887725]
[1768031633610,0.19192746,907.28,905.94,0.6887725]
[1768031633812,0.19192746,907.28,905.95,0.6887725]
[1768031634012,0.19192746,907.28,905.96,0.6887725]
[1768031634210,0.19192746,907.28,905.97,0.6887725]
[1768031634513,0.19192746,907.28,905.98,0.6887725]
[1768031634812,0.19192746,907.28,905.99,0.6887725]
[1768031635012,0.19192746,907.28,906.0,0.6887725]
[1768031635213,0.19192746,907.28,906.01,0.6887725]
[1768031635413,0.19192746,907.28,906.02,0.6887725]
[1768031635613,0.19192746,907.28,906.03,0.6887725]
[1768031635809,0.19192746,907.28,906.04,0.6887725]
[1768031636110,0.19192746,907.28,906.05,0.6887725]
[1768031636311,0.19192746,907.28,906.06,0.6887725]
[1768031636611,0.19192746,907.28,906.07,0.6887725]
[1768031636909,0.19192746,907.28,906.08,0.6887725]
[1768031637109,0.19192746,907.28,906.09,0.6887725]
[1768031637311,0.19192746,907.28,906.1,0.6887725]
[1768031637611,0.19192746,907.28,906.11,0.6887725]
[1768031637814,0.19192746,907.28,906.12,0.6887725]
[1768031638016,0.19192746,907.28,906.13,0.6887725]
[1768031638215,0.19192746,907.28,906.14,0.6887725]
[1768031638416,0.19192746,907.28,906.15,0.6887725]
[1768031638615,0.19192746,907.28,905.94,1.857]
[1768031638814,0.19192746,907.28,905.95,0.68896577]
[1768031639013,0.19192746,907.28,905.96,0.68896577]
[1768031639216,0.19192746,907.28,905.97,0.68896577]
[1768031639415,0.19192746,907.28,905.98,0.68896577]
[1768031639613,0.19192746,907.28,905.99,0.68896577]
[1768031639920,0.19192746,907.28,906.0,0.68896577]
[1768031640216,0.19192746,907.28,906.01,0.68896577]
[1768031640415,0.19192746,907.28,906.02,0.68896577]
[1768031640613,0.19192746,907.28,906.03,0.68896577]
[1768031640813,0.19192746,907.28,906.04,0.68896577]
[1768031641015,0.19192746,907.28,906.05,0.68896577]
[1768031641213,0.19192746,907.28,906.06,0.68896577]
[1768031641415,0.19192746,907.28,906.07,0.68896577]
[1768031641613,0.19192746,907.28,906.08,0.68896577]
[1768031641817,0.19192746,907.28,906.09,0.68896577]
[1768031642014,0.19192746,907.28,906.1,0.68896577]
[1768031642219,0.19192746,907.28,906.11,0.68896577]
[1768031642415,0.19192746,907.28,906.12,0.68896577]
[1768031642617,0.19192746,907.28,906.13,0.68896577]
[1768031642817,0.19192746,907.28,906.14,0.68896577]
[1768031643113,0.19192746,907.28,906.15,0.68896577]
[1768031643312,0.19192746,907.28,906.16,0.68904515]
[1768031643515,0.19192746,907.28,905.94,1.857]
[1768031643718,0.19192746,907.28,905.95,0.68904515]
[1768031643917,0.19192746,907.28,905.96,0.68904515]
[1768031644116,0.19192746,907.28,905.97,0.68904515]
[1768031644313,0.19192746,907.28,905.98,0.68904515]
[1768031644513,0.19192746,907.28,905.99,0.68904515]
[1768031644717,0.19192746,907.28,906.0,0.68904515]
[1768031644913,0.19192746,907.28,906.01,0.68904515]
[1768031645116,0.19192746,907.28,906.02,0.68904515]
[1768031645317,0.19192746,907.28,906.03,0.68904515]
[1768031645518,0.19192746,907.28,906.04,0.68904515]
[1768031645715,0.19192746,907.28,906.05,0.68904515]
[1768031646016,0.19192746,907.28,906.06,0.68904515]
[1768031646219,0.19192746,907.28,906.07,0.68904515]
[1768031646513,0.19192746,907.28,906.08,0.68904515]
[1768031646719,0.19192746,907.28,906.09,0.68904515]
[1768031646913,0.19192746,907.28,906.1,0.68904515]
[1768031647117,0.19192746,907.28,906.11,0.68904515]
[1768031647316,0.19192746,907.28,906.12,0.68904515]
[1768031647519,0.19192746,907.28,906.13,0.68904515]
[1768031647715,0.19192746,907.28,906.14,0.68904515]
[1768031647915,0.19192746,907.28,906.15,0.68904515]
[1768031648116,0.19192746,907.28,905.94,1.857]
[1768031648318,0.19192746,907.28,905.95,0.68921848]
[1768031648516,0.19192746,907.28,905.96,0.68921848]
[1768031648719,0.19192746,907.28,905.97,0.68921848]
[1768031649019,0.19192746,907.28,905.98,0.68921848]
[1768031649219,0.19192746,907.28,905.99,0.68921848]
[1768031649420,0.19192746,907.28,906.0,0.68921848]
[1768031649621,0.19192746,907.28,906.01,0.68921848]
[1768031649820,0.19192746,907.28,906.02,0.68921848]
[1768031650122,0.19192746,907.28,906.03,0.68921848]
[1768031650319,0.19192746,907.28,906.04,0.68921848]
[1768031650518,0.19192746,907.28,906.05,0.68921848]
[1768031650722,0.19192746,907.28,906.06,0.68921848]
[1768031650920,0.19192746,907.28,906.07,0.68921848]
[1768031651222,0.19192746,907.28,906.08,0.68921848]
[1768031651419,0.19192746,907.28,906.09,0.68921848]
[1768031651619,0.19192746,907.28,906.1,0.68921848]
[1768031651818,0.19192746,907.28,906.11,0.68921848]
[1768031652018,0.19192746,907.28,906.12,0.68921848]
[1768031652224,0.19192746,907.28,906.13,0.68921848]
[1768031652424,0.19192746,907.28,906.14,0.68921848]
[1768031652720,0.19192746,907.28,906.15,0.68921848]
[1768031652920,0.19192746,907.28,906.16,0.68921848]
[1768031653124,0.19192746,907.28,906.17,0.68921848]
[1768031653319,0.19192746,907.28,905.94,1.857]
[1768031653520,0.19192746,907.28,905.95,0.68952631]
[1768031653723,0.19192746,907.28,905.96,0.68952631]
[1768031653925,0.19192746,907.28,905.97,0.68952631]
[1768031654221,0.19192746,907.28,905.98,0.68952631]
[1768031654423,0.19192746,907.28,905.99,0.68952631]
[1768031654624,0.19192746,907.28,906.0,0.68952631]
[1768031654822,0.19192746,907.28,906.01,0.68952631]
[1768031655025,0.19192746,907.28,906.02,0.68952631]
[1768031655225,0.19192746,907.28,906.03,0.68952631]
[1768031655520,0.19192746,907.28,906.04,0.68952631]
[1768031655725,0.19192746,907.28,906.05,0.68952631]
[1768031655923,0.19192746,907.28,906.06,0.68952631]
[1768031656122,0.19192746,907.28,906.07,0.68952631]
[1768031656322,0.19192746,907.28,906.08,0.68952631]
[1768031656522,0.19192746,907.28,906.09,0.68952631]
[1768031656725,0.19192746,907.28,906.1,0.68952631]
[1768031656924,0.19192746,907.28,906.11,0.68952631]
[1768031657125,0.19192746,907.28,906.12,0.68952631]
[1768031657327,0.19192746,907.28,906.13,0.68952631]
[1768031657527,0.19192746,907.28,906.14,0.68952631]
[1768031657729,0.19192746,907.28,906.15,0.68952631]
[1768031657926,0.19192746,907.28,906.16,0.68952631]
[1768031658226,0.19192746,907.28,906.17,0.68952631]
[1768031658426,0.19192746,907.28,905.94,1.857]
[1768031658727,0.19192746,907.28,905.95,0.68952615]
[1768031659028,0.19192746,907.28,905.96,0.68952615]
[1768031659327,0.19192746,907.28,905.97,0.68952615]
[1768031659524,0.19192746,907.28,905.98,0.68952615]
[1768031659728,0.19192746,907.28,905.99,0.68952615]
[1768031659930,0.19192746,907.28,906.0,0.68952615]
[1768031660129,0.19192746,907.28,906.01,0.68952615]
[1768031660329,0.19192746,907.28,906.02,0.68952615]
[1768031660530,0.19192746,907.28,906.03,0.68952615]
[1768031660727,0.19192746,907.28,906.04,0.68952615]
[1768031661026,0.19192746,907.28,906.05,0.68952615]
[1768031661326,0.19192746,907.28,906.06,0.68952615]
[1768031661626,0.19192746,907.28,906.07,0.68952615]
[1768031661829,0.19192746,907.28,906.08,0.68952615]
[1768031662028,0.19192746,907.28,906.09,0.68952615]
[1768031662231,0.19192746,907.28,906.1,0.68952615]
[1768031662432,0.19192746,907.28,906.11,0.68952615]
[1768031662628,0.19192746,907.28,906.12,0.68952615]
[1768031662928,0.19192746,907.28,906.13,0.68952615]
[1768031663229,0.19192746,907.28,906.14,0.68952615]
[1768031663432,0.19192746,907.28,906.15,0.68952615]
[1768031663632,0.19192746,907.28,906.16,0.68952615]
[1768031663928,0.19192746,907.28,905.94,1.857]
[1768031664128,0.19192746,907.28,905.95,0.68865982]
[1768031664329,0.19192746,907.28,905.96,0.68865982]
[1768031664530,0.19192746,907.28,905.97,0.68865982]
[1768031664727,0.19192746,907.28,905.98,0.68865982]
[1768031664932,0.19192746,907.28,905.99,0.68865982]
[1768031665133,0.19192746,907.28,906.0,0.68865982]
[1768031665333,0.19192746,907.28,906.01,0.68865982]
[1768031665532,0.19192746,907.28,906.02,0.68865982]
[1768031665730,0.19192746,907.28,906.03,0.68865982]
[1768031665930,0.19192746,907.28,906.04,0.68865982]
[1768031666129,0.19192746,907.28,906.05,0.68865982]
[1768031666329,0.19192746,907.28,906.06,0.68865982]
[1768031666532,0.19192746,907.28,906.07,0.68865982]
[1768031666732,0.19192746,907.28,906.08,0.68865982]
[1768031666930,0.19192746,907.28,906.09,0.68865982]
[1768031667134,0.19192746,907.28,905.81,4.14680154]
[1768031667335,0.19192746,907.28,905.82,0.68872944]
[1768031667535,0.19192746,907.28,905.83,0.68872944]
[1768031667730,0.19192746,907.28,905.84,0.68872944]
[1768031667933,0.19192746,907.28,905.85,0.68872944]
[1768031668237,0.19192746,907.28,905.86,0.68872944]
[1768031668437,0.19192746,907.28,905.87,0.68872944]
[1768031668733,0.19192746,907.28,905.88,0.68872944]
[1768031668938,0.19192746,907.28,905.89,0.68872944]
[1768031669238,0.19192746,907.28,905.9,0.68872944]
[1768031669438,0.19192746,907.28,905.91,0.68872944]
[1768031669638,0.19192746,907.28,905.92,0.68872944]
[1768031669836,0.19192746,907.28,905.93,0.68872944]
[1768031670039,0.19192746,907.28,905.94,0.68872944]
[1768031670239,0.19192746,907.28,905.95,0.68872944]
[1768031670539,0.19192746,907.28,905.95,1.672]
[1768031710268,0.19192746,907.28,905.96,0.68752327]
[1768031710467,0.19192746,907.28,905.97,0.68752327]
[1768031710771,0.19192746,907.28,905.95,1.672]
[1768031710973,0.19192746,907.28,905.96,0.68752327]
[1768031711169,0.19192746,907.28,905.97,0.68752327]
[1768031711371,0.19192746,907.28,905.98,0.68772612]
[1768031711572,0.19192746,907.28,905.95,1.672]
[1768031711770,0.19192746,907.28,905.96,0.68772612]
[1768031711968,0.19192746,907.28,905.97,0.68772612]
[1768031712172,0.19192746,907.28,905.98,0.68772612]
[1768031712372,0.19192746,907.28,905.95,1.672]
[1768031712569,0.19192746,907.28,905.96,0.68771796]
[1768031712773,0.19192746,907.28,905.97,0.68771796]
[1768031713072,0.19192746,907.28,905.98,0.68771796]
[1768031713275,0.19192746,907.28,905.69,0.82689114]
[1768031713476,0.19192746,907.28,905.7,0.68771013]
[1768031713676,0.19192746,907.28,905.71,0.68771013]
[1768031713972,0.19192746,907.28,905.72,0.68771013]
[1768031714176,0.19192746,907.28,905.73,0.68771013]
[1768031714475,0.19192746,907.28,905.74,0.68771013]
[1768031714676,0.19192746,907.28,905.75,0.68771013]
[1768031714873,0.19192746,907.28,905.76,0.68771013]
[1768031715072,0.19192746,907.28,905.77,0.68771013]
[1768031715277,0.19192746,907.28,905.78,0.68771013]
[1768031715478,0.19192746,907.28,905.79,0.68771013]
[1768031715678,0.19192746,907.28,905.8,0.68771013]
[1768031715978,0.19192746,907.28,905.81,0.68771013]
[1768031716178,0.19192746,907.28,905.82,0.68771013]
[1768031716474,0.19192746,907.28,905.83,0.68771013]
[1768031716677,0.19192746,907.28,905.84,0.68771013]
[1768031716875,0.19192746,907.28,905.85,0.68771013]
[1768031717073,0.19192746,907.28,905.86,0.68771013]
[1768031717278,0.19192746,907.28,905.87,0.68771013]
[1768031717478,0.19192746,907.28,905.88,0.68771013]
[1768031717679,0.19192746,907.28,905.89,0.68771013]
[1768031717877,0.19192746,907.28,905.9,0.68771013]
[1768031718080,0.19192746,907.28,905.91,0.68771013]
[1768031718380,0.19192746,907.28,905.92,0.68771013]
[1768031718679,0.19192746,907.28,905.93,0.68771013]
[1768031718880,0.19192746,907.28,905.94,0.68771013]
[1768031719080,0.19192746,907.28,905.95,0.68771013]
[1768031719380,0.19192746,907.28,905.96,0.68771013]
[1768031719577,0.19192746,907.28,905.97,0.68771013]
[1768031719777,0.19192746,907.28,905.81,2.008]
[1768031720080,0.19192746,907.28,905.82,0.68761921]
[1768031720280,0.19192746,907.28,905.83,0.68761921]
[1768031720478,0.19192746,907.28,905.84,0.68761921]
[1768031720782,0.19192746,907.28,905.85,0.68761921]
[1768031720981,0.19192746,907.28,905.86,0.68761921]
[1768031721278,0.19192746,907.28,905.87,0.68761921]
[1768031721481,0.19192746,907.28,905.88,0.68761921]
[1768031721678,0.19192746,907.28,905.89,0.68761921]
[1768031721882,0.19192746,907.28,905.9,0.68761921]
[1768031722179,0.19192746,907.28,905.91,0.68761921]
[1768031722382,0.19192746,907.28,905.92,0.68761921]
[1768031722581,0.19192746,907.28,905.93,0.68761921]
[1768031722780,0.19192746,907.28,905.94,0.68761921]
[1768031722980,0.19192746,907.28,905.95,0.68761921]
[1768031723182,0.19192746,907.28,905.96,0.68761921]
[1768031723382,0.19192746,907.28,905.97,0.68761921]
[1768031723579,0.19192746,907.28,905.81,2.008]
[1768031723782,0.19192746,907.28,905.82,0.68800577]
[1768031723983,0.19192746,907.28,905.83,0.68800577]
[1768031724182,0.19192746,907.28,905.84,0.68800577]
[1768031724383,0.19192746,907.28,905.85,0.68800577]
[1768031724583,0.19192746,907.28,905.86,0.68800577]
[1768031724883,0.19192746,907.28,905.81,2.008]
[1768031724884,0.19192746,907.28,905.87,0.68800577]
[1768031725179,0.19192746,907.28,905.88,0.68800577]
[1768031725483,0.19192746,907.28,905.89,0.68800577]
[1768031725683,0.19192746,907.28,905.9,0.68800577]
[1768031725981,0.19192746,907.28,905.91,0.68800577]
[1768031726180,0.19192746,907.28,905.92,0.68800577]
[1768031726380,0.19192746,907.28,905.93,0.68800577]
[1768031726580,0.19192746,907.28,905.94,0.68800577]
[1768031726884,0.19192746,907.28,905.95,0.68800577]
[1768031727082,0.19192746,907.28,905.96,0.68800577]
[1768031727281,0.19192746,907.28,905.97,0.68800577]
[1768031727485,0.19192746,907.28,905.81,2.008]
[1768031727684,0.19192746,907.28,905.82,0.68795217]
[1768031727885,0.19192746,907.28,905.83,0.68795217]
[1768031728085,0.19192746,907.28,905.84,0.68795217]
[1768031728385,0.19192746,907.28,905.85,0.68795217]
[1768031728684,0.19192746,907.28,905.86,0.68795217]
[1768031728882,0.19192746,907.28,905.87,0.68795217]
[1768031729085,0.19192746,907.28,905.88,0.68795217]
[1768031729382,0.19192746,907.28,905.89,0.68795217]
[1768031729583,0.19192746,907.28,905.9,0.68795217]
[1768031729783,0.19192746,907.28,905.91,0.68795217]
[1768031729981,0.19192746,907.28,905.92,0.68795217]
[1768031730185,0.19192746,907.28,905.93,0.68795217]
[1768031730485,0.19192746,907.28,905.94,0.68795217]
[1768031730682,0.19192746,907.28,905.95,0.68795217]
[1768031730882,0.19192746,907.28,905.81,2.008]
[1768031731184,0.19192746,907.28,905.82,0.68793384]
[1768031731383,0.19192746,907.28,905.83,0.68793384]
[1768031731582,0.19192746,907.28,905.84,0.68793384]
[1768031731780,0.19192746,907.28,905.85,0.68793384]
[1768031731985,0.19192746,907.28,905.86,0.68793384]
[1768031732185,0.19192746,907.28,905.87,0.68793384]
[1768031732383,0.19192746,907.28,905.88,0.68793384]
[1768031732582,0.19192746,907.28,905.89,0.68793384]
[1768031732785,0.19192746,907.28,905.9,0.68793384]
[1768031732986,0.19192746,907.28,905.91,0.68793384]
[1768031733186,0.19192746,907.28,905.92,0.68793384]
[1768031733386,0.19192746,907.28,905.93,0.68793384]
[1768031733590,0.19192746,907.28,905.94,0.68793384]
[1768031733789,0.19192746,907.28,905.95,0.68793384]
[1768031733988,0.19192746,907.28,905.81,2.008]
[1768031734189,0.19192746,907.28,905.82,0.68793767]
[1768031734484,0.19192746,907.28,905.83,0.68793767]
[1768031734684,0.19192746,907.28,905.84,0.68793767]
[1768031734984,0.19192746,907.28,905.85,0.68793767]
[1768031735288,0.19192746,907.28,905.86,0.68793767]
[1768031735487,0.19192746,907.28,905.87,0.68793767]
[1768031735789,0.19192746,907.28,905.88,0.68793767]
[1768031735985,0.19192746,907.28,905.89,0.68793767]
[1768031736290,0.19192746,907.28,905.9,0.68793767]
[1768031736585,0.19192746,907.28,905.91,0.68793767]
[1768031736885,0.19192746,907.28,905.92,0.68793767]
[1768031737089,0.19192746,907.28,905.93,0.68793767]
[1768031737290,0.19192746,907.28,905.94,0.68793767]
[1768031737487,0.19192746,907.28,905.95,0.68793767]
[1768031737691,0.19192746,907.28,905.81,2.008]
[1768031737990,0.19192746,907.28,905.82,0.68795285]
[1768031738185,0.19192746,907.28,905.83,0.68795285]
[1768031738387,0.19192746,907.28,905.81,2.008]
[1768031738388,0.19192746,907.28,905.84,0.68795285]
[1768031738586,0.19192746,907.28,905.81,2.008]
[1768031738587,0.19192746,907.28,905.85,0.68795285]
[1768031738791,0.19192746,907.28,905.86,0.68795285]
[1768031738988,0.19192746,907.28,905.87,0.68795285]
[1768031739189,0.19192746,907.28,905.88,0.68795285]
[1768031739392,0.19192746,907.28,905.89,0.68795285]
[1768031739693,0.19192746,907.28,905.9,0.68795285]
[1768031739992,0.19192746,907.28,905.91,0.68795285]
[1768031740190,0.19192746,907.28,905.92,0.68795285]
[1768031740392,0.19192746,907.28,905.93,0.68795285]
[1768031740689,0.19192746,907.28,905.94,0.68795285]
[1768031740888,0.19192746,907.28,905.95,0.68795285]
[1768031741092,0.19192746,907.28,905.81,2.008]
[1768031741290,0.19192746,907.28,905.82,0.68800483]
[1768031741489,0.19192746,907.28,905.83,0.68800483]
[1768031741795,0.19192746,907.28,905.84,0.68800483]
[1768031741990,0.19192746,907.28,905.85,0.68800483]
[1768031742291,0.19192746,907.28,905.86,0.68800483]
[1768031742494,0.19192746,907.28,905.87,0.68800483]
[1768031742693,0.19192746,907.28,905.88,0.68800483]
[1768031742895,0.19192746,907.28,905.89,0.68800483]
[1768031743095,0.19192746,907.28,905.9,0.68800483]
[1768031743294,0.19192746,907.28,905.91,0.68800483]
[1768031743495,0.19192746,907.28,905.92,0.68800483]
[1768031743695,0.19192746,907.28,905.93,0.68800483]
[1768031743891,0.19192746,907.28,905.94,0.68800483]
[1768031744096,0.19192746,907.28,905.95,0.68800483]
[1768031744394,0.19192746,907.28,905.96,0.68800483]
[1768031744593,0.19192746,907.28,905.81,2.008]
[1768031744797,0.19192746,907.28,905.82,0.6881067]
[1768031744994,0.19192746,907.28,905.83,0.6881067]
[1768031745197,0.19192746,907.28,905.84,0.6881067]
[1768031745399,0.19192746,907.28,905.85,0.6881067]
[1768031745695,0.19192746,907.28,905.86,0.6881067]
[1768031745893,0.19192746,907.28,905.87,0.6881067]
[1768031746096,0.19192746,907.28,905.88,0.6881067]
[1768031746297,0.19192746,907.28,905.89,0.6881067]
[1768031746594,0.19192746,907.28,905.9,0.6881067]
[1768031746794,0.19192746,907.28,905.91,0.6881067]
[1768031746995,0.19192746,907.28,905.92,0.6881067]
[1768031747193,0.19192746,907.28,905.93,0.6881067]
[1768031747395,0.19192746,907.28,905.94,0.6881067]
[1768031747593,0.19192746,907.28,905.95,0.6881067]
[1768031747801,0.19192746,907.28,905.96,0.6881067]
[1768031748000,0.19192746,907.28,905.81,2.008]
[1768031748296,0.19192746,907.28,905.82,0.68825694]
[1768031748499,0.19192746,907.28,905.83,0.68825694]
[1768031748695,0.19192746,907.28,905.84,0.68825694]
[1768031748895,0.19192746,907.28,905.85,0.68825694]
[1768031749095,0.19192746,907.28,905.86,0.68825694]
[1768031749297,0.19192746,907.28,905.87,0.68825694]
[1768031749494,0.19192746,907.28,905.88,0.68825694]
[1768031749699,0.19192746,907.28,905.89,0.68825694]
[1768031749896,0.19192746,907.28,905.9,0.68825694]
[1768031750097,0.19192746,907.28,905.91,0.68825694]
[1768031750297,0.19192746,907.28,905.92,0.68825694]
[1768031750501,0.19192746,907.28,905.93,0.68825694]
[1768031750796,0.19192746,907.28,905.94,0.68825694]
[1768031751001,0.19192746,907.28,905.95,0.68825694]
[1768031751299,0.19192746,907.28,905.96,0.68825694]
[1768031751597,0.19192746,907.28,905.97,0.68825694]
[1768031751800,0.19192746,907.28,905.98,0.68825694]
[1768031751998,0.19192746,907.28,905.81,2.008]
[1768031752202,0.19192746,907.28,905.82,0.68854341]
[1768031752401,0.19192746,907.28,905.83,0.68854341]
[1768031752701,0.19192746,907.28,905.84,0.68854341]
[1768031752902,0.19192746,907.28,905.85,0.68854341]
[1768031753101,0.19192746,907.28,905.86,0.68854341]
[1768031753299,0.19192746,907.28,905.87,0.68854341]
[1768031753502,0.19192746,907.28,905.88,0.68854341]
[1768031753703,0.19192746,907.28,905.81,2.008]
[1768031753704,0.19192746,907.28,905.89,0.68854341]
[1768031754001,0.19192746,907.28,905.9,0.68854341]
[1768031754200,0.19192746,907.28,905.91,0.68854341]
[1768031754403,0.19192746,907.28,905.92,0.68854341]
[1768031754701,0.19192746,907.28,905.93,0.68854341]
[1768031754899,0.19192746,907.28,905.94,0.68854341]
[1768031755101,0.19192746,907.28,905.95,0.68854341]
[1768031755300,0.19192746,907.28,905.96,0.68854341]
[1768031755502,0.19192746,907.28,905.97,0.68854341]
[1768031755702,0.19192746,907.28,905.98,0.68854341]
[1768031755901,0.19192746,907.28,905.99,0.68854341]
[1768031756098,0.19192746,907.28,906.0,0.68854341]
[1768031756300,0.19192746,907.28,906.01,0.68854341]
[1768031756505,0.19192746,907.28,905.81,2.008]
[1768031756702,0.19192746,907.28,905.82,0.6894672]
[1768031756899,0.19192746,907.28,905.83,0.6894672]
[1768031757103,0.19192746,907.28,905.81,2.008]
[1768031757104,0.19192746,907.28,905.84,0.6894672]
[1768031757302,0.19192746,907.28,905.85,0.6894672]
[1768031757506,0.19192746,907.28,905.86,0.6894672]
[1768031757705,0.19192746,907.28,905.87,0.6894672]
[1768031757902,0.19192746,907.28,905.88,0.6894672]
[1768031758106,0.19192746,907.28,905.89,0.6894672]
[1768031758302,0.19192746,907.28,905.9,0.6894672]
[1768031758502,0.19192746,907.28,905.72,0.82689114]
[1768031758503,0.19192746,907.28,905.91,0.6894672]
[1768031758706,0.19192746,907.28,905.92,0.6894672]
[1768031758906,0.19192746,907.28,905.93,0.6894672]
[1768031759107,0.19192746,907.28,905.94,0.6894672]
[1768031759307,0.19192746,907.28,905.95,0.6894672]
[1768031759606,0.19192746,907.28,905.96,0.6894672]
[1768031759808,0.19192746,907.28,905.97,0.6894672]
[1768031760007,0.19192746,907.28,905.98,0.6894672]
[1768031760207,0.19192746,907.28,905.99,0.6894672]
[1768031760404,0.19192746,907.28,906.0,0.6894672]
[1768031760608,0.19192746,907.28,906.01,0.6894672]
[1768031760810,0.19192746,907.28,905.72,0.82689114]
[1768031761011,0.19192746,907.28,905.73,0.68947861]
[1768031761207,0.19192746,907.28,905.74,0.68947861]
[1768031761411,0.19192746,907.28,905.75,0.68947861]
[1768031761612,0.19192746,907.28,905.76,0.68947861]
[1768031761811,0.19192746,907.28,905.77,0.68947861]
[1768031762012,0.19192746,907.28,905.78,0.68947861]
[1768031762213,0.19192746,907.28,905.79,0.68947861]
[1768031762410,0.19192746,907.28,905.8,0.68947861]